[Event "European Union U14-ch 2024"]
[Site "Roznov pod Radhostem"]
[Date "2024.08.08"]
[Round "4.5"]
[White "Ochkova, Maria"]
[Black "Pritulina, Nadezhda"]
[Result "1-0"]
[ECO "B24"]
[WhiteElo "1553"]
[BlackElo "1589"]
[Annotator "NA RC"]
[PlyCount "65"]
[EventDate "2024.08.02"]
[EventType "swiss"]
[EventCountry "CZE"]
[SourceTitle "playchess.com"]
[Source "ChessBase"]
[SourceQuality "1"]
[TimeControl "5400+30"]

1. e4 {[%emt 0:00:08]} c5 {[%emt 0:00:03]} 2. Nc3 {[%emt 0:00:06]} Nc6 {[%emt 0:00:14]} 3. g3 {[%emt 0:00:05]} e6 {[%emt 0:00:14]} 4. Nge2 {[%emt 0:00:14]} Nf6 {[%emt 0:00:18]} 5. Bg2 {[%emt 0:00:11]} Be7 {[%emt 0:01:03]} 6. d3 {[%emt 0:00:16]} d5 {[%emt 0:00:56]} 7. exd5 {[%emt 0:00:05]} exd5 {[%emt 0:00:05]} 8. d4 {[%emt 0:00:08]} cxd4 {[%emt 0:05:11]} 9. Nxd4 {[%emt 0:00:06]} Bc5 {[%emt 0:00:05]} 10. Be3 {[%emt 0:00:31]} Nxd4 {[%emt 0:11:48]} 11. Bxd4 {[%emt 0:00:07]} Qe7+ {[%emt 0:00:06]} 12. Ne2 {[%emt 0:00:34]} Bxd4 {[%emt 0:06:13]} 13. Qxd4 {[%emt 0:00:06]} Bg4 {[%emt 0:00:13]} 14. O-O {[%emt 0:04:53]} O-O {[%emt 0:06:29]} 15. Nf4 {[%emt 0:00:33]} Be6 {[%emt 0:07:01]} 16. Bxd5 {[%emt 0:02:55]} Nxd5 {[%emt 0:02:16]} 17. Nxd5 {[%emt 0:00:10]} Qd7 {[%emt 0:00:12]} 18. Rad1 {[%emt 0:00:38]} Rfd8 {[%emt 0:00:56]} 19. c4 {[%emt 0:00:21]} b5 {[%emt 0:01:49]} 20. b3 {[%emt 0:00:23]} bxc4 {[%emt 0:05:44]} 21. bxc4 {[%emt 0:00:09]} Qa4 {[%emt 0:06:22]} 22. Qh4 {[%emt 0:22:45]} f6 {[%emt 0:08:05]} 23. Rfe1 {[%emt 0:03:53]} Bxd5 {[%emt 0:07:26]} 24. cxd5 {[%emt 0:00:15]} Qxa2 {[%emt 0:00:07]} 25. d6 {[%emt 0:00:30]} Qa5 {[%emt 0:00:34]} 26. Qc4+ Kf8 {[%emt 0:03:16]} 27. Re7 {[%emt 0:01:05]} Qh5 {[%emt 0:00:06]} 28. Rd5 {[%emt 0:01:24]} Qg6 {[%emt 0:05:24]} 29. Qc7 {[%emt 0:03:49]} a5 {[%emt 0:04:20]} 30. h4 {[%emt 0:00:38]} h5 {[%emt 0:00:53]} 31. Rxh5 {[%emt 0:03:10]} Kg8 {[%emt 0:05:09]} 32. Qc4+ {[%emt 0:00:13]} Kf8 {[%emt 0:00:39]} 33. Rh8# {[%emt 0:00:16]} 1-0

[Event "European Union U14-ch 2024"]
[Site "Roznov pod Radhostem"]
[Date "2024.08.08"]
[Round "4.6"]
[White "Myronova, Sofia"]
[Black "Madel, Luca"]
[Result "0-1"]
[ECO "C01"]
[WhiteElo "1463"]
[BlackElo "1628"]
[Annotator "NA RC"]
[PlyCount "80"]
[EventDate "2024.08.02"]
[EventType "swiss"]
[EventCountry "CZE"]
[SourceTitle "playchess.com"]
[Source "ChessBase"]
[SourceQuality "1"]
[TimeControl "5400+30"]

1. e4 {[%emt 0:00:09]} e6 {[%emt 0:00:06]} 2. d4 {[%emt 0:00:18]} d5 {[%emt 0:00:14]} 3. exd5 {[%emt 0:00:51]} exd5 {[%emt 0:00:09]} 4. Nf3 {[%emt 0:01:18]} Bd6 {[%emt 0:00:21]} 5. Bd3 {[%emt 0:00:26]} Ne7 {[%emt 0:00:35]} 6. Nc3 {[%emt 0:00:45]} c6 {[%emt 0:00:48]} 7. Be3 {[%emt 0:01:28]} O-O {[%emt 0:00:18]} 8. O-O {[%emt 0:00:58]} Bf5 {[%emt 0:01:55]} 9. Re1 {[%emt 0:01:53]} Nd7 {[%emt 0:01:51]} 10. a3 Nb6 {[%emt 0:01:09]} 11. b3 {[%emt 0:11:16]} Qd7 {[%emt 0:01:58]} 12. Bxf5 {[%emt 0:09:12]} Nxf5 {[%emt 0:00:33]} 13. Qd3 {[%emt 0:03:01]} Rfe8 {[%emt 0:01:29]} 14. Qd2 {[%emt 0:13:22]} Nxe3 {[%emt 0:01:43]} 15. fxe3 {[%emt 0:01:37]} f5 {[%emt 0:01:15]} 16. Qf2 {[%emt 0:01:29]} a5 {[%emt 0:00:56]} 17. Ne2 {[%emt 0:07:55]} a4 {[%emt 0:08:12]} 18. b4 {[%emt 0:01:34]} Nc4 {[%emt 0:00:52]} 19. Nc3 {[%emt 0:01:20]} Re7 {[%emt 0:02:37]} 20. Ng5 {[%emt 0:02:15]} Rae8 {[%emt 0:02:06]} 21. Nd1 {[%emt 0:01:46]} f4 {[%emt 0:01:40]} 22. Qe2 {[%emt 0:00:48]} fxe3 {[%emt 0:01:17]} 23. Qd3 {[%emt 0:02:53]} g6 {[%emt 0:01:39]} 24. Nc3 {[%emt 0:02:06]} Qf5 {[%emt 0:02:06]} 25. Qxf5 {[%emt 0:03:40]} gxf5 {[%emt 0:00:18]} 26. Nxa4 {[%emt 0:00:59]} Nxa3 {[%emt 0:00:41]} 27. Rac1 {[%emt 0:00:53]} e2 {[%emt 0:01:55]} 28. g3 {[%emt 0:01:43]} Bxb4 {[%emt 0:01:09]} 29. c3 {[%emt 0:00:12]} Bd6 {[%emt 0:00:46]} 30. Nf3 {[%emt 0:00:28]} f4 {[%emt 0:01:03]} 31. Kf2 {[%emt 0:00:11]} fxg3+ {[%emt 0:01:25]} 32. hxg3 {[%emt 0:00:14]} Nc4 {[%emt 0:01:04]} 33. Rb1 {[%emt 0:00:46]} b5 {[%emt 0:00:39]} 34. Nb2 {[%emt 0:00:09]} Na3 {[%emt 0:02:20]} 35. Rbc1 {[%emt 0:00:52]} b4 {[%emt 0:00:12]} 36. Na4 {[%emt 0:00:59]} b3 {[%emt 0:01:18]} 37. Nb2 {[%emt 0:00:31]} Nc2 {[%emt 0:00:10]} 38. Rg1 {[%emt 0:00:18]} Ba3 {[%emt 0:00:26]} 39. Rb1 {[%emt 0:01:35]} Re3 {[%emt 0:00:52]} 40. Ne5 {[%emt 0:01:25]} Rf8+ {[%emt 0:00:37]} 0-1

[Event "European Union U14-ch 2024"]
[Site "Roznov pod Radhostem"]
[Date "2024.08.08"]
[Round "4.7"]
[White "Barteckova, Nikol"]
[Black "Golub, Mia"]
[Result "1/2-1/2"]
[ECO "B23"]
[WhiteElo "1669"]
[BlackElo "1418"]
[Annotator "NA RC"]
[PlyCount "154"]
[EventDate "2024.08.02"]
[EventType "swiss"]
[EventCountry "CZE"]
[SourceTitle "playchess.com"]
[Source "ChessBase"]
[SourceQuality "1"]
[TimeControl "5400+30"]

1. e4 {[%emt 0:00:01]} c5 {[%emt 0:00:08]} 2. Nc3 {[%emt 0:00:06]} d6 {[%emt 0:00:51]} 3. f4 {[%emt 0:00:17]} Nc6 {[%emt 0:01:36]} 4. g3 {[%emt 0:01:21]} Nf6 {[%emt 0:01:59]} 5. Bg2 {[%emt 0:01:09]} Qc7 {[%emt 0:01:53]} 6. Nf3 {[%emt 0:05:35]} e6 {[%emt 0:01:45]} 7. d3 {[%emt 0:00:48]} Be7 {[%emt 0:02:31]} 8. O-O {[%emt 0:02:24]} a6 {[%emt 0:02:33]} 9. a4 {[%emt 0:02:47]} O-O {[%emt 0:01:55]} 10. h3 {[%emt 0:00:31]} d5 {[%emt 0:02:54]} 11. g4 {[%emt 0:03:12]} d4 {[%emt 0:04:37]} 12. Ne2 {[%emt 0:01:38]} e5 {[%emt 0:02:47]} 13. f5 {[%emt 0:04:00]} Bd7 {[%emt 0:01:54]} 14. Ng3 {[%emt 0:08:42]} b5 {[%emt 0:02:52]} 15. g5 {[%emt 0:04:35]} Ne8 {[%emt 0:05:09]} 16. h4 {[%emt 0:03:48]} Nd6 {[%emt 0:03:35]} 17. h5 {[%emt 0:05:16]} c4 {[%emt 0:06:06]} 18. Nh4 {[%emt 0:06:44]} Qd8 {[%emt 0:02:27]} 19. Nf3 {[%emt 0:08:07]} Qa5 {[%emt 0:06:09]} 20. b3 {[%emt 0:15:13]} cxb3 {[%emt 0:04:12]} 21. cxb3 {[%emt 0:00:20]} Qc3 {[%emt 0:03:18]} 22. Ba3 {[%emt 0:02:23]} f6 {[%emt 0:05:46]} 23. gxf6 {[%emt 0:06:41]} Rxf6 {[%emt 0:01:58]} 24. axb5 {[%emt 0:01:19]} axb5 {[%emt 0:06:31]} 25. Bb2 {[%emt 0:01:01]} Rxa1 {[%emt 0:01:23]} 26. Bxa1 {[%emt 0:00:28]} Qb4 {[%emt 0:00:47]} 27. Bb2 {[%emt 0:00:54]} Be8 {[%emt 0:01:36]} 28. Bc1 {[%emt 0:06:23]} Bf7 {[%emt 0:02:51]} 29. Bg5 {[%emt 0:01:23]} Bxb3 {[%emt 0:01:10]} 30. Qb1 {[%emt 0:01:03]} Rf7 {[%emt 0:00:24]} 31. Bd2 {[%emt 0:02:58]} Qa4 {[%emt 0:01:28]} 32. Qc1 {[%emt 0:02:28]} b4 {[%emt 0:01:50]} 33. h6 {[%emt 0:01:52]} Nb5 {[%emt 0:01:57]} 34. hxg7 {[%emt 0:00:35]} Rxg7 {[%emt 0:00:24]} 35. Nh5 {[%emt 0:00:24]} Rf7 {[%emt 0:03:03]} 36. Bg5 {[%emt 0:00:31]} Nc3 {[%emt 0:00:29]} 37. Re1 {[%emt 0:00:29]} Qb5 {[%emt 0:01:31]} 38. Bxe7 {[%emt 0:00:34]} Nxe7 {[%emt 0:01:16]} 39. Qg5+ {[%emt 0:00:56]} Kf8 {[%emt 0:02:01]} 40. f6 {[%emt 0:00:26]} Ng8 {[%emt 0:01:19]} 41. Nxe5 {[%emt 0:00:40]} Rc7 {[%emt 0:01:14]} 42. f7 {[%emt 0:00:25]} Bxf7 {[%emt 0:02:35]} 43. Nxf7 {[%emt 0:00:38]} Rxf7 {[%emt 0:00:58]} 44. Qd8+ {[%emt 0:00:09]} Qe8 {[%emt 0:00:14]} 45. Qxd4 {[%emt 0:00:49]} Qe7 {[%emt 0:00:54]} 46. Qb6 {[%emt 0:00:29]} Nf6 {[%emt 0:01:43]} 47. Qb8+ {[%emt 0:00:26]} Ne8 {[%emt 0:00:22]} 48. Ng3 {[%emt 0:00:37]} Qc5+ {[%emt 0:01:41]} 49. Kh2 {[%emt 0:00:34]} Rf6 {[%emt 0:00:45]} 50. Nf5 {[%emt 0:00:18]} Kf7 {[%emt 0:02:19]} 51. Rf1 {[%emt 0:00:00]} Qc7+ {[%emt 0:01:28]} 52. Qxc7+ {[%emt 0:00:00]} Nxc7 {[%emt 0:00:09]} 53. Nh6+ {[%emt 0:00:10]} Kg6 {[%emt 0:00:39]} 54. Nf5 {[%emt 0:00:18]} Ne6 {[%emt 0:00:44]} 55. Nh4+ {[%emt 0:00:58]} Kf7 {[%emt 0:00:26]} 56. Nf5 {[%emt 0:00:57]} Nc5 {[%emt 0:00:36]} 57. e5 {[%emt 0:00:58]} Rb6 {[%emt 0:00:34]} 58. Nd6+ {[%emt 0:00:28]} Ke6 {[%emt 0:00:30]} 59. Nc4 {[%emt 0:00:31]} Rb8 {[%emt 0:00:44]} 60. d4 {[%emt 0:00:19]} Nd3 {[%emt 0:01:27]} 61. Rf6+ {[%emt 0:00:49]} Ke7 {[%emt 0:00:22]} 62. Ne3 {[%emt 0:00:33]} b3 {[%emt 0:00:41]} 63. Nd5+ {[%emt 0:00:37]} Nxd5 {[%emt 0:00:10]} 64. Bxd5 {[%emt 0:00:06]} b2 {[%emt 0:00:08]} 65. Ba2 {[%emt 0:00:04]} Nc1 {[%emt 0:00:54]} 66. Bb1 {[%emt 0:00:14]} Rf8 {[%emt 0:00:32]} 67. Rxf8 {[%emt 0:00:21]} Kxf8 {[%emt 0:00:06]} 68. Bxh7 {[%emt 0:00:15]} Na2 {[%emt 0:00:25]} 69. Kg3 {[%emt 0:00:16]} Nc3 {[%emt 0:00:09]} 70. Kf4 {[%emt 0:00:14]} b1=Q {[%emt 0:00:08]} 71. Bxb1 {[%emt 0:00:13]} Nxb1 {[%emt 0:00:04]} 72. d5 {[%emt 0:00:03]} Nc3 {[%emt 0:00:05]} 73. d6 {[%emt 0:00:20]} Ke8 {[%emt 0:00:36]} 74. e6 {[%emt 0:00:24]} Nd5+ {[%emt 0:00:11]} 75. Ke5 {[%emt 0:00:15]} Ne7 {[%emt 0:00:22]} 76. Kf6 {[%emt 0:00:57]} Ng8+ {[%emt 0:00:18]} 77. Kg7 {[%emt 0:00:17]} Ne7 {[%emt 0:00:15]} 1/2-1/2

[Event "European Union U14-ch 2024"]
[Site "Roznov pod Radhostem"]
[Date "2024.08.09"]
[Round "5.1"]
[White "Constantinoiu, Alexandru Ioan"]
[Black "Boros, David"]
[Result "1-0"]
[ECO "B04"]
[WhiteElo "1904"]
[BlackElo "1796"]
[Annotator "NA RC"]
[PlyCount "73"]
[EventDate "2024.08.02"]
[EventType "swiss"]
[EventCountry "CZE"]
[SourceTitle "playchess.com"]
[Source "ChessBase"]
[SourceQuality "1"]
[TimeControl "5400+30"]

1. e4 {[%emt 0:00:03]} Nf6 {[%emt 0:00:46]} 2. e5 {[%emt 0:00:16]} Nd5 {[%emt 0:00:04]} 3. d4 {[%emt 0:00:21]} d6 {[%emt 0:00:42]} 4. Nf3 {[%emt 0:00:13]} g6 {[%emt 0:11:56]} 5. Bc4 {[%emt 0:00:51]} c6 {[%emt 0:04:09]} 6. Bxd5 {[%emt 0:32:06]} cxd5 {[%emt 0:00:55]} 7. Nc3 {[%emt 0:00:34]} Bg7 {[%emt 0:27:16]} 8. O-O {[%emt 0:10:44]} Nc6 {[%emt 0:09:18]} 9. Nxd5 {[%emt 0:09:01]} Bg4 {[%emt 0:01:29]} 10. exd6 {[%emt 0:18:25]} Qxd6 {[%emt 0:03:49]} 11. c4 {[%emt 0:01:00]} Nxd4 {[%emt 0:06:00]} 12. Bf4 {[%emt 0:03:07]} e5 {[%emt 0:01:40]} 13. Qxd4 {[%emt 0:01:24]} Bxf3 {[%emt 0:02:31]} 14. gxf3 {[%emt 0:03:40]} O-O {[%emt 0:09:09]} 15. Bg3 {[%emt 0:00:23]} f5 {[%emt 0:01:31]} 16. Qd3 {[%emt 0:04:24]} g5 {[%emt 0:05:07]} 17. Rac1 {[%emt 0:05:58]} Rad8 {[%emt 0:03:19]} 18. Rfd1 {[%emt 0:00:47]} h5 {[%emt 0:03:50]} 19. Qb3 {[%emt 0:03:59]} h4 {[%emt 0:04:06]} 20. c5 {[%emt 0:00:45]} Qe6 {[%emt 0:00:22]} 21. Nf6+ {[%emt 0:00:56]} Kf7 {[%emt 0:00:37]} 22. Qxe6+ {[%emt 0:00:57]} Kxe6 {[%emt 0:00:09]} 23. Nh7 {[%emt 0:00:33]} hxg3 {[%emt 0:02:36]} 24. Nxf8+ {[%emt 0:00:13]} Rxf8 {[%emt 0:00:11]} 25. Rd6+ {[%emt 0:00:48]} Ke7 {[%emt 0:00:16]} 26. fxg3 {[%emt 0:00:53]} Rc8 {[%emt 0:00:53]} 27. b4 {[%emt 0:00:38]} b6 {[%emt 0:00:19]} 28. Rdd1 {[%emt 0:00:42]} e4 {[%emt 0:00:40]} 29. fxe4 {[%emt 0:00:38]} fxe4 {[%emt 0:00:11]} 30. cxb6 {[%emt 0:00:31]} Rxc1 {[%emt 0:00:14]} 31. Rxc1 {[%emt 0:00:05]} Bd4+ {[%emt 0:00:07]} 32. Kg2 {[%emt 0:00:19]} Bxb6 {[%emt 0:00:41]} 33. Re1 {[%emt 0:00:06]} e3 {[%emt 0:00:15]} 34. Kf3 {[%emt 0:00:06]} Kd6 {[%emt 0:00:16]} 35. Rxe3 {[%emt 0:00:15]} Bxe3 {[%emt 0:00:11]} 36. Kxe3 {[%emt 0:00:09]} Kc6 {[%emt 0:00:25]} 37. h4 {[%emt 0:00:14]} 1-0

[Event "European Union U14-ch 2024"]
[Site "Roznov pod Radhostem"]
[Date "2024.08.09"]
[Round "5.2"]
[White "Belocky, Daniel"]
[Black "Bocquenet-Drouode, Hugo"]
[Result "0-1"]
[ECO "D20"]
[WhiteElo "1731"]
[BlackElo "2025"]
[Annotator "NA RC"]
[PlyCount "105"]
[EventDate "2024.08.02"]
[EventType "swiss"]
[EventCountry "CZE"]
[SourceTitle "playchess.com"]
[Source "ChessBase"]
[SourceQuality "1"]
[TimeControl "5400+30"]

1. d4 {[%emt 0:00:02]} d5 {[%emt 0:00:05]} 2. c4 {[%emt 0:00:04]} dxc4 {[%emt 0:00:04]} 3. e4 {[%emt 0:00:05]} e5 {[%emt 0:00:12]} 4. d5 {[%emt 0:00:05]} Nf6 {[%emt 0:00:11]} 5. Nc3 {[%emt 0:00:28]} b5 {[%emt 0:00:45]} 6. f3 {[%emt 0:00:35]} c6 {[%emt 0:32:13]} 7. dxc6 {[%emt 0:05:36]} Qb6 {[%emt 0:02:00]} 8. Nd5 {[%emt 0:02:31]} Nxd5 {[%emt 0:02:43]} 9. exd5 {[%emt 0:00:56]} Bc5 {[%emt 0:03:27]} 10. Nh3 {[%emt 0:01:19]} Bxh3 {[%emt 0:04:02]} 11. gxh3 {[%emt 0:00:38]} Bf2+ {[%emt 0:01:02]} 12. Ke2 {[%emt 0:00:07]} O-O {[%emt 0:03:54]} 13. Bg2 {[%emt 0:05:30]} Na6 {[%emt 0:08:47]} 14. a4 {[%emt 0:03:21]} Nb4 {[%emt 0:07:50]} 15. axb5 {[%emt 0:00:52]} Nd3 {[%emt 0:10:29]} 16. Qa4 {[%emt 0:05:22]} Qd4 {[%emt 0:07:49]} 17. Qc2 {[%emt 0:04:05]} Qxd5 {[%emt 0:08:53]} 18. Ra4 {[%emt 0:00:59]} Rad8 {[%emt 0:02:01]} 19. Rxc4 {[%emt 0:01:33]} Bb6 {[%emt 0:02:04]} 20. c7 {[%emt 0:00:57]} Nxc1+ {[%emt 0:00:18]} 21. Rxc1 {[%emt 0:00:16]} Rc8 {[%emt 0:00:09]} 22. h4 {[%emt 0:02:51]} Qxb5 {[%emt 0:00:19]} 23. Qd3 {[%emt 0:00:51]} e4 {[%emt 0:01:44]} 24. fxe4 {[%emt 0:01:00]} Qxb2+ {[%emt 0:00:17]} 25. R1c2 {[%emt 0:00:10]} Qe5 {[%emt 0:00:13]} 26. Qg3 {[%emt 0:00:34]} Qb5 {[%emt 0:00:37]} 27. Qd3 {[%emt 0:03:51]} Qh5+ {[%emt 0:00:55]} 28. Qf3 {[%emt 0:02:06]} Qb5 {[%emt 0:00:31]} 29. Kd1 {[%emt 0:00:18]} Qd7+ {[%emt 0:00:44]} 30. Ke1 {[%emt 0:02:03]} Rxc7 {[%emt 0:00:19]} 31. Rxc7 {[%emt 0:00:42]} Bxc7 {[%emt 0:00:08]} 32. Bh3 {[%emt 0:01:02]} Qe7 {[%emt 0:00:24]} 33. Kf1 {[%emt 0:00:32]} Bb6 {[%emt 0:00:22]} 34. Qg4 {[%emt 0:00:41]} Qf6+ {[%emt 0:00:39]} 35. Kg2 {[%emt 0:00:42]} Qd4 {[%emt 0:00:21]} 36. Re2 {[%emt 0:00:58]} a5 {[%emt 0:00:49]} 37. e5 {[%emt 0:00:35]} Qg1+ {[%emt 0:00:14]} 38. Kf3 {[%emt 0:00:06]} Qh1+ {[%emt 0:00:24]} 39. Qg2 {[%emt 0:00:06]} Qd1 {[%emt 0:00:16]} 40. Kg3 {[%emt 0:00:44]} Rd8 {[%emt 0:00:40]} 41. Qf1 {[%emt 0:00:59]} Qb3+ {[%emt 0:00:16]} 42. Kg2 {[%emt 0:00:18]} Qd5+ {[%emt 0:01:12]} 43. Qf3 {[%emt 0:00:26]} Qd4 {[%emt 0:00:11]} 44. Re1 {[%emt 0:00:21]} Qxh4 {[%emt 0:00:35]} 45. Re2 {[%emt 0:00:37]} Qd4 {[%emt 0:00:39]} 46. Re1 {[%emt 0:00:18]} Qd2+ {[%emt 0:00:25]} 47. Re2 {[%emt 0:00:13]} Qc1 {[%emt 0:00:23]} 48. Kg3 {[%emt 0:01:25]} Qg5+ {[%emt 0:01:04]} 49. Qg4 {[%emt 0:00:37]} Qc1 {[%emt 0:00:42]} 50. Qf3 {[%emt 0:00:21]} Qg1+ {[%emt 0:00:15]} 51. Bg2 {[%emt 0:00:42]} Qd1 {[%emt 0:00:17]} 52. Qf1 {[%emt 0:01:01]} Rd3+ {[%emt 0:00:21]} 53. Bf3 {[%emt 0:00:24]} 0-1

[Event "European Union U14-ch 2024"]
[Site "Roznov pod Radhostem"]
[Date "2024.08.09"]
[Round "5.3"]
[White "Michalska, Lena"]
[Black "Stara, Zuzana"]
[Result "0-1"]
[ECO "A11"]
[WhiteElo "1837"]
[BlackElo "2005"]
[Annotator "NA RC"]
[PlyCount "74"]
[EventDate "2024.08.02"]
[EventType "swiss"]
[EventCountry "CZE"]
[SourceTitle "playchess.com"]
[Source "ChessBase"]
[SourceQuality "1"]
[TimeControl "5400+30"]

1. c4 {[%emt 0:00:01]} c6 {[%emt 0:00:09]} 2. Nf3 {[%emt 0:00:05]} d5 {[%emt 0:00:18]} 3. e3 {[%emt 0:00:05]} Bf5 {[%emt 0:00:26]} 4. d4 {[%emt 0:00:20]} e6 {[%emt 0:00:56]} 5. Bd3 {[%emt 0:00:09]} Bg6 {[%emt 0:02:55]} 6. a3 {[%emt 0:01:26]} Nf6 {[%emt 0:00:29]} 7. Nc3 {[%emt 0:00:09]} Bd6 {[%emt 0:02:21]} 8. c5 {[%emt 0:01:05]} Bc7 {[%emt 0:00:29]} 9. b4 {[%emt 0:00:04]} Nbd7 {[%emt 0:02:44]} 10. Bb2 {[%emt 0:00:13]} Qe7 {[%emt 0:00:21]} 11. Ne2 {[%emt 0:03:44]} Bxd3 {[%emt 0:10:03]} 12. Qxd3 {[%emt 0:00:09]} h5 {[%emt 0:06:01]} 13. Qc2 {[%emt 0:09:10]} h4 {[%emt 0:05:41]} 14. h3 {[%emt 0:00:46]} Ne4 {[%emt 0:02:50]} 15. Nd2 {[%emt 0:10:04]} Nxd2 {[%emt 0:06:03]} 16. Qxd2 {[%emt 0:00:20]} Qg5 {[%emt 0:00:50]} 17. f4 {[%emt 0:06:59]} Qxg2 {[%emt 0:08:18]} 18. O-O-O {[%emt 0:00:11]} Nf6 {[%emt 0:03:44]} 19. Rdg1 {[%emt 0:01:13]} Qf3 {[%emt 0:00:28]} 20. Rf1 {[%emt 0:01:14]} Qh5 {[%emt 0:00:25]} 21. Nc3 {[%emt 0:04:25]} Qf5 {[%emt 0:00:44]} 22. Rfg1 {[%emt 0:03:18]} Ne4 {[%emt 0:11:04]} 23. Nxe4 {[%emt 0:00:22]} Qxe4 {[%emt 0:00:07]} 24. Rh2 {[%emt 0:00:04]} g6 {[%emt 0:02:01]} 25. Qe2 {[%emt 0:02:44]} Ke7 {[%emt 0:04:18]} 26. Bc3 {[%emt 0:02:57]} a5 {[%emt 0:03:45]} 27. Kb2 {[%emt 0:11:33]} axb4 {[%emt 0:00:43]} 28. Bxb4 {[%emt 0:01:59]} Bxf4 {[%emt 0:06:45]} 29. exf4 {[%emt 0:00:33]} Qxd4+ {[%emt 0:00:17]} 30. Bc3 {[%emt 0:00:50]} Qxg1 {[%emt 0:02:48]} 31. Rg2 {[%emt 0:29:27]} Qh1 {[%emt 0:00:14]} 32. Qg4 {[%emt 0:04:16]} Rhb8 {[%emt 0:09:51]} 33. Qxh4+ {[%emt 0:02:38]} Kd7 {[%emt 0:00:16]} 34. Rxg6 {[%emt 0:01:09]} b6 {[%emt 0:02:28]} 35. Rg7 {[%emt 0:00:12]} bxc5+ {[%emt 0:00:11]} 36. Kc2 {[%emt 0:00:02]} Qb1+ {[%emt 0:00:55]} 37. Kd2 {[%emt 0:00:05]} Rb2+ {[%emt 0:00:20]} 0-1

[Event "European Union U14-ch 2024"]
[Site "Roznov pod Radhostem"]
[Date "2024.08.09"]
[Round "5.4"]
[White "Madel, Luca"]
[Black "Kincses, Emma"]
[Result "0-1"]
[ECO "B23"]
[WhiteElo "1628"]
[BlackElo "1618"]
[Annotator "NA RC"]
[PlyCount "128"]
[EventDate "2024.08.02"]
[EventType "swiss"]
[EventCountry "CZE"]
[SourceTitle "playchess.com"]
[Source "ChessBase"]
[SourceQuality "1"]
[TimeControl "5400+30"]

1. e4 {[%emt 0:00:10]} c5 {[%emt 0:00:04]} 2. Nc3 {[%emt 0:00:26]} g6 {[%emt 0:00:35]} 3. g3 {[%emt 0:00:39]} Bg7 {[%emt 0:00:06]} 4. Bg2 {[%emt 0:00:06]} Nc6 {[%emt 0:00:18]} 5. d3 {[%emt 0:00:35]} Nf6 {[%emt 0:01:29]} 6. Be3 {[%emt 0:01:02]} d6 {[%emt 0:00:28]} 7. h3 {[%emt 0:00:16]} O-O {[%emt 0:02:35]} 8. Qd2 {[%emt 0:02:28]} Rb8 {[%emt 0:20:15]} 9. a4 {[%emt 0:01:01]} Be6 {[%emt 0:04:07]} 10. Nge2 {[%emt 0:01:35]} a6 {[%emt 0:04:13]} 11. f4 {[%emt 0:02:48]} Bd7 {[%emt 0:04:31]} 12. O-O {[%emt 0:02:23]} Nb4 {[%emt 0:04:21]} 13. g4 {[%emt 0:02:59]} Qc8 {[%emt 0:00:45]} 14. f5 {[%emt 0:02:16]} Nc6 {[%emt 0:03:48]} 15. Bh6 {[%emt 0:06:29]} Ne5 {[%emt 0:02:09]} 16. Bxg7 {[%emt 0:00:58]} Kxg7 {[%emt 0:00:16]} 17. Ng3 {[%emt 0:03:09]} b5 {[%emt 0:06:23]} 18. axb5 {[%emt 0:02:22]} axb5 {[%emt 0:00:11]} 19. g5 {[%emt 0:00:30]} Ng8 {[%emt 0:08:44]} 20. h4 {[%emt 0:02:07]} f6 {[%emt 0:01:39]} 21. Bh3 {[%emt 0:03:43]} Qb7 {[%emt 0:05:19]} 22. Nd5 {[%emt 0:01:45]} Bc6 {[%emt 0:00:58]} 23. Nf4 {[%emt 0:01:09]} Bd7 {[%emt 0:00:57]} 24. fxg6 {[%emt 0:05:13]} hxg6 {[%emt 0:05:03]} 25. Ne6+ {[%emt 0:02:23]} Kf7 {[%emt 0:05:41]} 26. Nf4 {[%emt 0:01:58]} Bxh3 {[%emt 0:00:43]} 27. Nxh3 {[%emt 0:00:18]} Qd7 {[%emt 0:00:21]} 28. Kg2 {[%emt 0:01:14]} Kg7 {[%emt 0:01:58]} 29. Qe2 {[%emt 0:03:24]} d5 {[%emt 0:05:43]} 30. exd5 {[%emt 0:05:43]} Qxd5+ {[%emt 0:00:08]} 31. Qe4 {[%emt 0:00:08]} Qd6 {[%emt 0:02:31]} 32. h5 {[%emt 0:01:51]} f5 {[%emt 0:02:12]} 33. h6+ {[%emt 0:01:08]} Kh7 {[%emt 0:00:16]} 34. Qe2 {[%emt 0:03:27]} Qd5+ {[%emt 0:00:36]} 35. Kg1 {[%emt 0:00:25]} Qd4+ {[%emt 0:00:35]} 36. Kh1 {[%emt 0:01:47]} Qxb2 {[%emt 0:00:46]} 37. Rae1 {[%emt 0:00:45]} Nc6 {[%emt 0:01:29]} 38. Nf4 {[%emt 0:00:34]} Qd4 {[%emt 0:00:57]} 39. Ne6 {[%emt 0:02:06]} Qd5+ {[%emt 0:01:05]} 40. Qg2 {[%emt 0:01:05]} Qxg2+ {[%emt 0:00:14]} 41. Kxg2 {[%emt 0:00:17]} Rfc8 {[%emt 0:00:07]} 42. Nxc5 {[%emt 0:03:44]} Nb4 {[%emt 0:00:57]} 43. c3 {[%emt 0:01:12]} Rxc5 {[%emt 0:00:20]} 44. cxb4 {[%emt 0:00:13]} Rd5 {[%emt 0:00:22]} 45. Rf3 {[%emt 0:04:44]} Rd4 {[%emt 0:00:32]} 46. Rb1 {[%emt 0:00:26]} Rg4 {[%emt 0:00:28]} 47. Kf2 {[%emt 0:03:07]} Rxg5 {[%emt 0:00:18]} 48. Rh1 {[%emt 0:00:22]} Rg4 {[%emt 0:00:34]} 49. Nxf5 {[%emt 0:00:15]} gxf5 {[%emt 0:00:46]} 50. Rxf5 {[%emt 0:00:07]} Nxh6 {[%emt 0:00:23]} 51. Rf7+ {[%emt 0:00:44]} Kg6 {[%emt 0:00:28]} 52. Rxe7 {[%emt 0:00:32]} Nf5 {[%emt 0:00:42]} 53. Re4 {[%emt 0:01:05]} Rxe4 {[%emt 0:00:50]} 54. dxe4 {[%emt 0:00:07]} Nd6 {[%emt 0:00:05]} 55. Re1 {[%emt 0:01:48]} Rf8+ {[%emt 0:00:48]} 56. Kg3 {[%emt 0:00:30]} Kg5 {[%emt 0:01:14]} 57. e5 {[%emt 0:01:01]} Nc4 {[%emt 0:00:45]} 58. e6 {[%emt 0:00:46]} Re8 {[%emt 0:00:12]} 59. e7 {[%emt 0:01:47]} Kf6 {[%emt 0:00:12]} 60. Rf1+ {[%emt 0:01:25]} Kxe7 {[%emt 0:00:13]} 61. Rf5 {[%emt 0:01:22]} Rg8+ {[%emt 0:00:25]} 62. Kh4 {[%emt 0:00:25]} Rh8+ {[%emt 0:00:13]} 63. Kg3 {[%emt 0:00:13]} Rb8 {[%emt 0:00:12]} 64. Kf4 {[%emt 0:00:37]} Rf8 {[%emt 0:00:57]} 0-1